Cogmind - Beta 13 @@@ ROGUE MODE // 2024.04.13 @ 16:01:29 Player: Bananaman Result: Destroyed by L-31 Rogue with Katana Performance ------------- Evolutions (1) 500 Regions Visited (3) 600 Robots Destroyed (39) 195 Value Destroyed (1034) 1034 Prototype IDs (1) 20 Alien Tech Used (0) 0 Bonus (0) 0 TOTAL SCORE: 2349 Bonus ------- None Cogmind --------- Core Integrity 0/400 Matter 300/300 Energy 156/265 System Corruption 11% Temperature Cool (0) Movement Hovering (56) Location -9/Storage Parts ------- > --- POWER (1) -------- Improved Ion Engine > --- PROPULSION (2) --- Improved Hover Unit Improved Hover Unit > --- UTILITY (4) ------ Targeting Computer ECM Suite > --- WEAPON (2) ------- Improved EM Shotgun Hammer > --- INVENTORY (5) ---- Improved Hover Unit Improved Hover Unit Heavy EM Pulse Gun Improved EM Shotgun Improved EM Shotgun Peak State ------------ > --- POWER ------------ Improved Ion Engine > --- PROPULSION ------- Improved Hover Unit Improved Hover Unit > --- UTILITY ---------- Small Storage Unit Targeting Computer ECM Suite > --- WEAPON ----------- Improved EM Shotgun Hammer > --- INVENTORY -------- Heat Sink Power Shielding Heavy EM Pulse Gun Improved EM Shotgun Improved EM Shotgun Improved Light Cannon Hammer [Rating: 14] Favorites ----------- Power Ion Engine Engine Ion Engine Power Core Light Nuclear Core Propulsion Aluminum Leg Leg Aluminum Leg Hover Unit Improved Hover Unit Utility Small Storage Unit Device ECM Suite Storage Small Storage Unit Processor Targeting Computer Protection Core Shielding Weapon Hammer Energy Gun Improved EM Shotgun Energy Cannon Beam Cannon Ballistic Gun Assault Rifle Ballistic Cannon Improved Light Cannon Impact Weapon Hammer Build | -11 -10 -9 -9 ------- Run | Yrd Mat Mat Sto Slots Evolved 2 | . . 2 . Power . | . . . . Propulsion . | . . . . Utility 2 | . . 2 . Weapon . | . . . . Parts Attached 42 | 8 13 9 12 Power 6 | 1 3 . 2 Engine 4 | 1 1 . 2 Core 2 | . 2 . . Reactor . | . . . . Propulsion 15 | 2 5 3 5 Treads . | . . . . Leg 12 | 2 5 3 2 Wheel . | . . . . Hover 3 | . . . 3 Flight . | . . . . Utility 9 | 2 1 4 2 Device 4 | 1 . 3 . Storage 1 | 1 . . . Processor 1 | . 1 . . Hackware . | . . . . Protection 3 | . . 1 2 Artifact . | . . . . Weapon 12 | 3 4 2 3 Energy Gun 1 | . . . 1 Energy Cannon 2 | . 2 . . Ballistic Gun 3 | 3 . . . Ballistic Cannon 2 | . . 2 . Launcher . | . . . . Special Weapon . | . . . . Impact Weapon 4 | . 2 . 2 Slashing Weapon . | . . . . Piercing Weapon . | . . . . Special Melee Weapon . | . . . . Unidentified Prototypes 1 | . . . 1 Corrupted Parts 1 | . . . 1 System Corruption 11 | . . . 11 Parts Lost 16 | . . 6 10 Power . | . . . . Propulsion 8 | . . 3 5 Utility 5 | . . 2 3 Weapon 3 | . . 1 2 Highest Loss Streak 4 | . . 4 3 To Critical Strikes . | . . . . Average Slot Usage (%) 91 | . 95 88 91 Engine 9 | . 6 11 10 Core 1 | . 7 . . Leg 17 | . 26 16 14 Hover 2 | . . . 4 Device 10 | . 8 10 11 Storage 11 | . 14 11 11 Processor 9 | . 5 11 11 Protection 4 | . . 6 6 Energy Cannon 4 | . 12 6 . Ballistic Cannon 7 | . . 8 10 Impact Weapon 9 | . 11 6 9 Naked Turns . | . . . . Heaviest Build 27 | 14 16 27 21 Greatest Support 20 | 20 20 20 20 Greatest Overweight (x) 5 | . 4 5 5 Average Overweight (x) . | . . . . Largest Inventory Capacity 8 | 8 8 8 8 Average Capacity 7 | 7 8 8 7 Most Carried 8 | 2 3 7 8 Average Carried 4 | 1 2 5 6 Final Capacity 8 | 8 8 8 5 Final Carried 7 | 2 3 7 5 Class Distribution -------------------- 100% | Mutant Dominant Class ---------------- Mutant | -10/Materials Mutant | -9/Materials Mutant | -9/Storage Resources | -11 -10 -9 -9 ----------- Run | Yrd Mat Mat Sto Matter Collected 1033 | 306 141 118 468 Remotely 82 | 25 57 . . Salvage Created 1118 | 80 299 220 519 Parts 57 | 4 16 11 26 Haulers Intercepted 1 | . . . 1 Recyclers Shooed . | . . . . Parts Field Recycled . | . . . . Retrieved Matter . | . . . . Parts Self-Destructed . | . . . . Prevented . | . . . . Kills | -11 -10 -9 -9 ------- Run | Yrd Mat Mat Sto Combat Hostiles Destroyed 31 | . 10 9 12 Melee 8 | . 5 1 2 Guns 3 | . 3 . . Cannons 14 | . . 7 7 Classes Destroyed 10 | 2 3 1 4 Worker 1 | . . . 1 Builder 1 | . 1 . . Tunneler 1 | 1 . . . Hauler 1 | . . . 1 Recycler 2 | 1 . . 1 Operator 1 | . . . 1 Watcher 1 | . . . 1 Swarmer 8 | . 6 2 . Grunt 16 | . 4 5 7 Sentry 7 | . . 2 5 Best Kill Streak 4 | 1 4 4 4 Combat Bots Only 4 | . 3 4 2 Max Kills in Single Turn 2 | 1 2 1 1 Gunslinging . | . . . . Exploded . | . . . . Melee 1 | . 1 1 1 Uniques/NPCs Destroyed . | . . . . Combat | -11 -10 -9 -9 -------- Run | Yrd Mat Mat Sto Hostile Shots Fired 231 | . 48 86 97 Missed 56 | . 9 24 23 Damage Taken 2144 | . 394 751 999 Core 484 | . 80 180 224 Absorbed by Shields . | . . . . Redirected to Shielding 33 | . . . 33 Core Remaining (%) 84 | 100 68 . . Volleys Fired 73 | 11 4 22 36 Largest 2 | 2 2 2 2 Hottest 80 | 40 80 78 78 Shots Fired 141 | 22 8 39 72 Gun 27 | 22 4 . 1 Cannon 114 | . 4 39 71 Launcher . | . . . . Special . | . . . . Kinetic 131 | 22 4 34 71 Thermal 9 | . 4 5 . Explosive . | . . . . Electromagnetic 1 | . . . 1 Robot Hit Streak 10 | 5 7 10 8 Robot Miss Streak 3 | 2 1 2 3 Penetration Max . | . . . . Secondary Targets . | . . . . Shots Hit Robots 134 | 14 18 34 68 Core Hits 36 | 4 9 10 13 Critical Kills 2 | . 1 . 1 Critical Parts Destroyed 8 | . 1 2 5 Critical Strikes 13 | . 2 3 8 Blast 2 | . . 1 1 Smash 11 | . 2 2 7 Melee Attacks 64 | . 22 7 35 Impact 64 | . 22 7 35 Slashing . | . . . . Piercing . | . . . . Sneak Attacks 6 | . . . 6 Combat Hostiles . | . . . . Follow-up Attacks 1 | . . . 1 Damage Inflicted 2962 | 134 444 721 1663 Guns 206 | 134 52 . 20 Cannons 1435 | . 35 542 858 Explosions . | . . . . Melee 1315 | . 351 179 785 Ramming 6 | . 6 . . Kinetic 1533 | 134 52 489 858 Thermal 88 | . 35 53 . Explosive . | . . . . Electromagnetic 20 | . . . 20 Impact 1315 | . 351 179 785 Slashing . | . . . . Piercing . | . . . . Highest Corruption 11 | . . . 11 Average Corruption 11 | . . . 11 Corruption Purged . | . . . . Corruption Blocked . | . . . . Effects 13 | . . . 13 Message Errors 6 | . . . 6 Matter Fused 2 | . . . 2 Energy Discharges 1 | . . . 1 Parts Rejected 1 | . . . 1 Data Loss (minor) 1 | . . . 1 Data Loss (major) 1 | . . . 1 Misfires 1 | . . . 1 Overload Shots . | . . . . Overflow Damage 430 | . 39 64 327 Projectiles 4 | . 4 . . Explosions . | . . . . Melee 426 | . 35 64 327 Knockbacks 15 | . 2 5 8 Impact 5 | . 2 1 2 Kinetic 9 | . . 3 6 Secondary 1 | . . 1 . Self-Inflicted Damage . | . . . . Shots . | . . . . Rammed 1 | . . 1 . Targets Rammed 2 | . 1 1 . Kicked 1 | . 1 . . Crushed . | . . . . Highest Temperature 162 | . 72 162 153 Average Temperature 48 | . 38 62 40 Received Heat Transfer 840 | . 147 336 357 Siege Activations . | . . . . Robots Corrupted . | . . . . Combat Hostiles . | . . . . Parts Fried 8 | . 3 . 5 Impact Corruptions 18 | . 4 3 11 Robots Melted . | . . . . Combat Hostiles . | . . . . Parts Melted . | . . . . Heat Transferred 185 | . 74 111 . Parts Sabotaged . | . . . . Parts Stolen . | . . . . Parts Stripped . | . . . . Power Chain Reactions . | . . . . Alert | -11 -10 -9 -9 ------- Run | Yrd Mat Mat Sto Peak Influence 306 | 10 241 251 306 Initial 105 | . 6 44 105 Average 148 | 3 140 109 189 Maximum Alert Level 1 | . 1 1 1 Low Security (%) 64 | 100 61 76 55 Level 1 35 | . 38 23 44 Level 2 . | . . . . Level 3 . | . . . . Level 4 . | . . . . Level 5 . | . . . . High Security . | . . . . Max Security . | . . . . Squads Dispatched 8 | . 2 1 5 Investigation 4 | . 2 . 2 Extermination . | . . . . Reinforcement 1 | . . 1 . Assault . | . . . . Garrison 3 | . . . 3 Intercept . | . . . . Searches Triggered . | . . . . Construction Impeded . | . . . . Haulers Reinforced . | . . . . Active Scanning Responses . | . . . . Cargo Convoy Interrupts . | . . . . Stealth | -11 -10 -9 -9 --------- Run | Yrd Mat Mat Sto Distress Signals 3 | . 1 1 1 Communications Jammed . | . . . . Distress Signals . | . . . . Times Spotted 51 | . 13 15 23 Peak Tracking Total 6 | . 4 5 6 Tactical Retreats 7 | . 2 3 2 Traps | -11 -10 -9 -9 ------- Run | Yrd Mat Mat Sto Traps Triggered 7 | . 3 . 4 Indirectly . | . . . . Trap Hack Attempts . | . . . . Triggered . | . . . . Disarmed . | . . . . Reprogrammed . | . . . . Reused . | . . . . Traps Extracted . | . . . . Installed . | . . . . Triggered 1 | . 1 . . Machines | -11 -10 -9 -9 ---------- Run | Yrd Mat Mat Sto Machines Disabled 1 | . . 1 . Max in Single Turn 1 | . . 1 . Machines Repaired . | . . . . Machines Dismantled . | . . . . Machines Sabotaged . | . . . . Overloaded Fab Kills . | . . . . Hacking | -11 -10 -9 -9 --------- Run | Yrd Mat Mat Sto Machines Accessed 9 | . 4 2 3 Terminals 8 | . 4 1 3 Fabricators . | . . . . Repair Stations . | . . . . Recycling Units 1 | . . 1 . Scanalyzers . | . . . . Garrison Access . | . . . . Total Hacks 17 | . 7 3 7 Successful 3 | . . 1 2 Failed 14 | . 7 2 5 Catastrophic 7 | . 4 . 3 Database Lockouts . | . . . . Manual 6 | . 5 . 1 Terminals 16 | . 7 2 7 Fabricators . | . . . . Repair Stations . | . . . . Recycling Units 1 | . . 1 . Scanalyzers . | . . . . Garrison Access . | . . . . Terminal Hacks 2 | . . . 2 Alert Level 1 | . . . 1 Locate Traps 1 | . . . 1 Fabricator Hacks . | . . . . Repair Station Hacks . | . . . . Recycling Unit Hacks 1 | . . 1 . Report Inventory 1 | . . 1 . Scanalyzer . | . . . . Garrison Access Hacks . | . . . . Unauthorized Hacks . | . . . . Terminals . | . . . . Fabricators . | . . . . Repair Stations . | . . . . Recycling Units . | . . . . Scanalyzers . | . . . . Garrison Access . | . . . . Data Cores Recovered . | . . . . Used . | . . . . Hacking Detections 7 | . 4 1 2 Full Trace Events 2 | . 1 . 1 Feedback Events . | . . . . Feedback Blocked . | . . . . Robot Schematics Acquired . | . . . . Robots Built . | . . . . Authchips . | . . . . Time . | . . . . Total Robot Build Rating . | . . . . Part Schematics Acquired . | . . . . Parts Built . | . . . . Authchips . | . . . . Time . | . . . . Total Part Build Rating . | . . . . Parts Repaired . | . . . . Time . | . . . . Parts Recycled . | . . . . Recycled Matter . | . . . . Retrieved Matter . | . . . . Retrieved Components . | . . . . Parts Scanalyzed . | . . . . Part Schematics Acquired . | . . . . Parts Damaged . | . . . . Bothacking | -11 -10 -9 -9 ------------ Run | Yrd Mat Mat Sto Used RIF Installer . | . . . . Robots Hacked . | . . . . Non-combat . | . . . . Combat . | . . . . Robot Hacks Applied . | . . . . Relay Couplers Released . | . . . . Fabnet Peak Effective % . | . . . . Robots Rewired . | . . . . Allies Hacked . | . . . . Hacks Repelled . | . . . . Allies | -11 -10 -9 -9 -------- Run | Yrd Mat Mat Sto Total Allies . | . . . . Largest Group . | . . . . Highest-Rated Group . | . . . . Highest-Rated Ally . | . . . . Total Orders . | . . . . Ally Attacks . | . . . . Total Damage . | . . . . Kills . | . . . . Allies Corrupted . | . . . . Allies Melted . | . . . . Intel | -11 -10 -9 -9 ------- Run | Yrd Mat Mat Sto Robot Analysis Total . | . . . . Derelict Logs Recovered . | . . . . Drone Launches . | . . . . Drone Recoveries . | . . . . Exploration | -11 -10 -9 -9 ------------- Run | Yrd Mat Mat Sto Turns Passed 1883 | 136 452 380 915 Spaces Moved 963 | 83 293 165 422 Core 30 | 10 3 3 14 Treads . | . . . . Legs 877 | 73 290 162 352 Wheels . | . . . . Hover 56 | . . . 56 Flight . | . . . . Fastest Speed 50 | 50 120 120 116 Average Speed 145 | 111 121 168 160 Slowest Speed 300 | 120 250 300 300 Overloaded Moves . | . . . . Propulsion Burnouts . | . . . . Robots Hopped . | . . . . Cave-ins Triggered . | . . . . Exploration Rate (%) 32 | 4 46 16 62 Regions Visited 3 Branch Regions 1 Pre-discovered Areas . | . . . . Known Exits Taken . | . . . . Unknown Exits Taken 3 | 1 1 1 . Scrap Searched . | . . . . Spaces Dug . | . . . . Terrain Destroyed 3 | . . . 3 Melee . | . . . . Projectile 3 | . . . 3 AOE . | . . . . Terrain Rammed . | . . . . Walls Destroyed . | . . . . Machines Disabled . | . . . . Actions | -11 -10 -9 -9 --------- Run | Yrd Mat Mat Sto Total 1186 | 103 337 212 534 Wait 7 | . . 1 6 Move 960 | 82 292 164 422 Hop . | . . . . Pick Up 14 | 1 . 6 7 Fast Attach 32 | 8 12 5 7 Attach 9 | . . 4 5 Detach 4 | 1 . 2 1 Swap 1 | . 1 . . Drop 8 | . 5 . 3 Fire 73 | 11 4 22 36 Melee 59 | . 22 7 30 Ram 1 | . . 1 . Kick 1 | . 1 . . Crush . | . . . . Escape Stasis 15 | . . . 15 Rewire 2 | . . . 2 Trap . | . . . . Miscellaneous . | . . . . Route ------- -11/Scrapyard -10/Materials (discovered 2 exits: *Mat / [*Min]) -9/Materials -9/Storage History --------- Turn | Location | Event 4 | -11/Scrapyard | Discovered new exit (range 14) 137 | -11/Scrapyard | Entered Materials 222 | -10/Materials | Discovered new exit (range 8) 307 | -10/Materials | Build established: Mutant 419 | -10/Materials | Discovered new exit (range 13) 589 | -10/Materials | Entered another Materials area 589 | -9/Materials | Evolved 2 slots: Utility x2 891 | -9/Materials | Lost 4 parts (1n2u1w) 914 | -9/Materials | Discovered new exit (range 12) 969 | -9/Materials | Entered Storage 1209 | -9/Storage | Core integrity fell below 50% 1454 | -9/Storage | Lost 3 parts (1n2w) 1576 | -9/Storage | System corruption reached 10% 1806 | -9/Storage | Core integrity fell below 20% 1863 | -9/Storage | Lost 3 parts (2n1u) 1884 | -9/Storage | Destroyed by L-31 Rogue with Katana Last Messages --------------- 01818_ Y-45 Defender misfires. 01822_ Y-45 Defender suffers critical hit (Smash). 01829_ System corrupted: FCS attempts to trigger Imp. EM Shotgun. 01829_ System corrupted: Imp. EM Shotgun misfires. 01829_ Destroyed Heat Sink. 01832_ Aluminum Leg destroyed. 01836_ Y-45 Defender suffers critical hit (Smash). 01836_ Y-45 Defender destroyed. 01849_ Acquired Imp. Hover Unit. 01851_ R-06 Scavenger collects Ion Engine. 01853_ X2>DISM NW9TMTL5<2XCTRQGY 01853_ Acquired Imp. Hover Unit. 01860_ Dropped Hammer. 01860_ Acquired Imp. Hover Unit. 01862_ R-06 Scavenger collects Corrupted Med. Storage Unit. 01864_ Acquired 32 matter. 01874_ R-06 Scavenger collects Corrupted Lgt. Treads. 01876_ 1CF4KF:<,M9RB>NB#ESAYE12WKUQVAHC7C=W6/ 01879_ R-06 Scavenger collects Corrupted Imp. Ion Engine. 01881_ Sml. Storage Unit destroyed. Map ----- +----------------------------------------------------+ | ??????????????##### #?# # #? | | ??????????????# + ### """ """ # #? | | ?????????????#T # + """ """ # #? | | ?????????????##""## ### """ """ # #? | | ??????????????????# ^ ### +% #? | | ??????????????????# ^ """ ""# # ^^#? | | ??????????????????# """ T"# #^^^#? | | ??????????????????# """" ""# # #? | | ?????????????#????#[ """" ############# #? | | ????????????? ### """" #???????????# #? | | ???????????? ^"" #???????????# #? | | ??????????????T ^ #???????????# #? | | ??????????????? ### #???????????# #? | | ??????????????????# [ #???????????? ? | | ??????????????????# ###+######??? ? | | ??????????????????# % T ? | | ??????????????????# = ###???? # | | ??????????????????# #######+##### ##?????? # | | ??????????????????# ??# #?????????? ? ## | | ??????????????????# ???# """ #?????????? ???? | | ??????????????????#????#^"R #??????????????? | | ???????????????????????+ """ #??????????????? | | ???????????????????????# #??????????????? | | ???????????????#+??????# == #??????????????? | | ???????????????# ###g]= #??????????????? | | ???????????????# rl@= = #??????????????? | | ?????????+ Y Y### ! /r % #??????????????? | | ?????????# ######????####### ##??????????????? | | ?????????????????????????????###???????????????? | | ???????????????????????????????????????????????? | | ???????????????????????????????????????????????? | | ???????????????????????????????????????????????? | | ???????????????????????????????????????????????? | | ???????????????????????????????????????????????? | | | | | | | | | | | | | | | | | | | | | | | | | | | | | | | | | +----------------------------------------------------+ Best States ------------- Heat Dissipation 28 Energy Generation 14 Energy Capacity 265 Matter Stores 300 Matter Capacity 300 Sight Range 16 Terrain Scan Density 10 ECM Strength 2 Armor Coverage 225 Core Shielding 20 Weapon Shielding 33 Evasion (%) 55 Targeting Accuracy 5 Item Schematics ----------------- None Robot Schematics ------------------ None Fabricated ------------ Nothing Alien Tech Used ----------------- None Achievements -------------- None Challenges ------------ None Game ------ Seed CooledImprinterAutohacker Manual? 0 Play Time 00:23:47 Cumulative 9.6 hours Start 2024.04.13 @ 15:18:05 End 2024.04.13 @ 16:01:29 Sessions 1 Manual Loads 0 Difficulty Rogue Special Mode None Game No. 9 Rogue 9 Adventurer 0 Explorer 0 Win Type - Total 0 Types 0/0/0/0/0/0/0/0/0 Lore% 7 Gallery% 18 Achievement% 18 Wizard Run 0 Options --------- Layout 0 ASCII 0 Keyboard 0 Movement Numpad Keybinds 0 Fullscreen 1 Font 18/SmallcapsGlow Map View 38x25 Zoom Use 97% Tactical HUD 1 Map Filters NONE Filters NONE Steam 1 RUN: c38a8c52-840f-4e6e-93d9-3eaa86e9dd7c